Workbook

Sheet Лог обновления (hidden)
A1: Дата/Время | B1: Сообщение | C1: Статус
A2: 2014-03-04T10:21:30 | B2: Проверка доступных обновлений... | C2: Информация
A3: 2014-03-04T10:21:30 | B3: Нет доступных обновлений для шаблона с кодом FORM3.1.2015! | C3: Информация
A4: 2014-04-01T10:14:52 | B4: Проверка доступных обновлений... | C4: Информация
A5: 2014-04-01T10:15:06 | B5: Версия шаблона 1.0.1 актуальна, обновление не требуется | C5: Информация
A6: 2014-04-01T11:24:07 | B6: Проверка доступных обновлений... | C6: Информация
A7: 2014-04-01T11:24:08 | B7: Версия шаблона 1.0.1 актуальна, обновление не требуется | C7: Информация
A8: 2014-04-01T15:09:23 | B8: Проверка доступных обновлений... | C8: Информация
A9: 2014-04-01T15:09:24 | B9: Версия шаблона 1.0.1 актуальна, обновление не требуется | C9: Информация
A10: 2014-04-01T15:38:11 | B10: Проверка доступных обновлений... | C10: Информация
A11: 2014-04-01T15:38:12 | B11: Версия шаблона 1.0.1 актуальна, обновление не требуется | C11: Информация
A12: 2014-04-02T11:27:50 | B12: Проверка доступных обновлений... | C12: Информация
A13: 2014-04-02T11:27:51 | B13: Версия шаблона 1.0.1 актуальна, обновление не требуется | C13: Информация
A14: 2014-04-03T09:12:52 | B14: Проверка доступных обновлений... | C14: Информация
A15: 2014-04-03T09:12:54 | B15: Версия шаблона 1.0.1 актуальна, обновление не требуется | C15: Информация

Sheet Титульный
F4: =version -> 
E5: Предложения сетевой компании по технологическому расходу электроэнергии (мощности) - потерям в электрических сетях
E7: Субъект РФ | F7: Челябинская область
E9: Период регулирования | F9: 2015
E11: Наименование организации | F11: ООО "Электросетевая компания"
E12: ИНН | F12: 7417014880
E13: КПП | F13: 741701001
F14: Адрес организации
E15: Юридический адрес | F15: 456910, г. Сатка, ул. 50 лет Октября, д.22
E16: Почтовый адрес | F16: 456910, г. Сатка, ул. 50 лет Октября, д.22
F17: Руководитель
E18: Фамилия, имя, отчество | F18: Данилов Евгений Вячеславович
E19: Должность | F19: Генеральный директор
F20: Главный бухгалтер
E21: Фамилия, имя, отчество | F21: Коробкова Мария Александровна
E22: Должность | F22: Главный бухгалтер
F23: Должностное лицо, ответственное за составление формы
E24: Фамилия, имя, отчество | F24: Деева Марина Евгеньевна
E25: Должность | F25: экономист
E26: Контактный телефон | F26: 8 (35161) 3-19-38
E27: e-mail | F27: elkompaniya@ya.ru

Sheet Форма 3.1
B1: 0 | C1: 0 | D1: 0 | E1: =god -> 2015 | G1: Год | H1: Год | I1: Год | J1: Январь | K1: Февраль | L1: Март | M1: Апрель | N1: Май | O1: Июнь | P1: Июль | Q1: Август | R1: Сентябрь | S1: Октябрь | T1: Ноябрь | U1: Декабрь | V1: Год
G2: =$E$1-2 -> 2013 | H2: =$E$1-2 -> 2013 | I2: =$E$1-1 -> 2014 | J2: =$E$1 -> 2015 | K2: 2015 | L2: 2015 | M2: 2015 | N2: 2015 | O2: 2015 | P2: 2015 | Q2: 2015 | R2: 2015 | S2: 2015 | T2: 2015 | U2: 2015 | V2: 2015
G3: План | H3: Факт | I3: План | J3: План | K3: План | L3: План | M3: План | N3: План | O3: План | P3: План | Q3: План | R3: План | S3: План | T3: План | U3: План | V3: План
V7: Форма 3.1
D8: ="Предложения " & org & " по технологическому расходу электроэнергии (мощности) - потерям в электрических сетях на "& god &" год в регионе: "&region_name -> Предложения ООО "Электросетевая компания" по технологическому расходу электроэнергии (мощности) - потерям в электрических сетях на 2015 год в регионе: Челябинская область
D10: № п/п | E10: Наименование | F10: Ед. изм. | G10: =G3&" "&G2&" "&G1 -> План 2013 Год | H10: Факт 2013 Год | I10: План 2014 Год | J10: План 2015 Январь | K10: План 2015 Февраль | L10: План 2015 Март | M10: План 2015 Апрель | N10: План 2015 Май | O10: План 2015 Июнь | P10: План 2015 Июль | Q10: План 2015 Август | R10: План 2015 Сентябрь | S10: План 2015 Октябрь | T10: План 2015 Ноябрь | U10: План 2015 Декабрь | V10: План 2015 Год
D11: 1 | E11: 2 | F11: 3 | G11: 4 | H11: 5 | I11: 6 | J11: 7 | K11: 8 | L11: 9 | M11: 10 | N11: 11 | O11: 12 | P11: 13 | Q11: 14 | R11: 15 | S11: 16 | T11: 17 | U11: 18 | V11: 19
E12: Электроэнергия
A13: L1 | B13: Отпуск в сеть-энергия | D13: 1 | E13: Поступление в сеть | F13: млн.кВтч | G13: 284.53 | H13: 221.341 | I13: 250.74894 | J13: 16.27 | K13: 18.41 | L13: 21.33 | M13: 20.57 | N13: 21.09 | O13: 17.19 | P13: 15.56 | Q13: 16.28 | R13: 18.41 | S13: 21.33 | T13: 20.57 | U13: 21.09 | V13: =SUM(J13:U13) -> 228.1
A14: L2 | B14: Потери в электрической сети -энергия | D14: 2 | E14: Потери в электрической сети, в т.ч. относимые на: | F14: млн.кВтч | G14: =SUM(G15:G16) -> 5.87 | H14: 4.436 | I14: 5.6446 | J14: 0.348 | K14: 0.385 | L14: 0.457 | M14: 0.442 | N14: 0.452 | O14: 0.348 | P14: 0.345 | Q14: 0.348 | R14: 0.385 | S14: 0.457 | T14: 0.442 | U14: 0.45 | V14: =SUM(J14:U14) -> 4.859
A15: L2.1 | B15: собственное потребление | D15: 2.1 | E15: собственное потребление | F15: млн.кВтч | V15: =SUM(J15:U15) -> 0
A16: L2.2 | B16: передачу сторонним потребителям (субабонентам) | D16: 2.2 | E16: передачу сторонним потребителям (субабонентам) | F16: млн.кВтч | G16: 5.87 | H16: 4.436 | I16: 5.6446 | J16: 0.348 | K16: 0.385 | L16: 0.457 | M16: 0.442 | N16: 0.452 | O16: 0.348 | P16: 0.345 | Q16: 0.348 | R16: 0.385 | S16: 0.457 | T16: 0.442 | U16: 0.45 | V16: =SUM(J16:U16) -> 4.859
A17: L3 | B17: Относительные потери-энергия | D17: 3 | E17: Относительные потери | F17: % | G17: =IF(G13=0,0,G14/G13*100) -> 2.063051348 | H17: 2.004147447 | I17: 2.251096256 | J17: 2.138905962 | K17: 2.091254753 | L17: 2.142522269 | M17: 2.148760331 | N17: 2.143195827 | O17: 2.02443281 | P17: 2.21722365 | Q17: 2.137592138 | R17: 2.091254753 | S17: 2.142522269 | T17: 2.148760331 | U17: 2.13371266 | V17: 2.13020605
A18: L4 | B18: Полезный отпуск-энергия | D18: 4 | E18: Отпуск из сети (полезный отпуск ), в т.ч. для | F18: млн.кВтч | G18: =G13-G14 -> 278.66 | H18: 216.905 | I18: 245.10434 | J18: 15.922 | K18: 18.025 | L18: 20.873 | M18: 20.128 | N18: 20.638 | O18: 16.842 | P18: 15.215 | Q18: 15.932 | R18: 18.025 | S18: 20.873 | T18: 20.128 | U18: 20.64 | V18: =SUM(J18:U18) -> 223.241
A19: L4.1 | B19: собственного потребления | D19: 4.1 | E19: собственного потребления | F19: млн.кВтч | V19: =SUM(J19:U19) -> 0
A20: L4.2 | B20: передачи сторонним потребителям (субабонентам) | D20: 4.2 | E20: передачи сторонним потребителям (субабонентам) | F20: млн.кВтч | G20: 278.66 | H20: 216.905 | I20: 245.10434 | J20: 15.922 | K20: 18.025 | L20: 20.873 | M20: 20.128 | N20: 20.638 | O20: 16.842 | P20: 15.215 | Q20: 15.932 | R20: 18.025 | S20: 20.837 | T20: 20.128 | U20: 20.64 | V20: =SUM(J20:U20) -> 223.205
E21: Мощность
A22: L5 | B22: Отпуск в сеть-энергия | D22: 5 | E22: Поступление в сеть | F22: МВт | G22: 40.49 | H22: 31.4986 | I22: 35.68 | J22: 27.26143854 | K22: 34.15219893 | L22: 35.73979619 | M22: 35.61524619 | N22: 35.33766065 | O22: 29.76305698 | P22: 26.07178756 | Q22: 27.27819418 | R22: 31.87538563 | S22: 35.73979619 | T22: 35.61524619 | U22: 35.33766065 | V22: =SUM(J22:U22)/12 -> 32.48228899
A23: L6 | B23: Потери в электрической сети -энергия | D23: 6 | E23: Потери в электрической сети, в т.ч. относимые на: | F23: МВт | G23: =SUM(G24:G25) -> 0.84 | H23: 0.6314 | I23: 0.8 | J23: 0.5830965341 | K23: 0.7142094834 | L23: 0.7657330923 | M23: 0.7652862818 | N23: 0.7573552685 | O23: 0.6025330907 | P23: 0.5780698399 | Q23: 0.5830965341 | R23: 0.666595517 | S23: 0.7657330923 | T23: 0.7652862818 | U23: 0.754004139 | V23: 0.6917499296
A24: L6.1 | B24: собственное потребление | D24: 6.1 | E24: собственное потребление | F24: МВт | V24: =SUM(J24:U24)/12 -> 0
A25: L6.2 | B25: передачу сторонним потребителям (субабонентам) | D25: 6.2 | E25: передачу сторонним потребителям (субабонентам) | F25: МВт | G25: 0.84 | H25: 0.6314 | I25: 0.8 | J25: 0.5830965341 | K25: 0.7142094834 | L25: 0.7657330923 | M25: 0.7652862818 | N25: 0.7573552685 | O25: 0.6025330907 | P25: 0.5780698399 | Q25: 0.5830965341 | R25: 0.666595517 | S25: 0.7657330923 | T25: 0.7652862818 | U25: 0.754004139 | V25: =SUM(J25:U25)/12 -> 0.6917499296
A26: L7 | B26: Относительные потери-энергия | D26: 7 | E26: Относительные потери | F26: % | G26: =IF(G22=0,0,G23/G22*100) -> 2.074586318 | H26: 2.004533535 | I26: 2.242152466 | J26: 2.138905962 | K26: 2.091254753 | L26: 2.142522269 | M26: 2.148760331 | N26: 2.143195827 | O26: 2.02443281 | P26: 2.21722365 | Q26: 2.137592138 | R26: 2.091254753 | S26: 2.142522269 | T26: 2.148760331 | U26: 2.13371266 | V26: 2.129621868
A27: L8 | B27: Полезный отпуск-энергия | D27: 8 | E27: Отпуск из сети (полезный отпуск), в т.ч. для | F27: МВт | G27: =G22-G23 -> 39.65 | H27: 30.8672 | I27: 34.88 | J27: 26.678342 | K27: 33.43798945 | L27: 34.9740631 | M27: 34.84995991 | N27: 34.58030538 | O27: 29.16052389 | P27: 25.49371772 | Q27: 26.69509765 | R27: 31.20879011 | S27: 34.9740631 | T27: 34.84995991 | U27: 34.58365651 | V27: =SUM(J27:U27)/12 -> 31.79053906
A28: L8.1 | B28: собственного потребления | D28: 8.1 | E28: собственного потребления | F28: МВт | V28: =SUM(J28:U28)/12 -> 0
A29: L8.2 | B29: передачи сторонним потребителям (субабонентам) | D29: 8.2 | E29: передачи сторонним потребителям (субабонентам) | F29: МВт | G29: 39.65 | H29: 30.8672 | I29: 34.88 | J29: 26.678342 | K29: 33.43798945 | L29: 34.9740631 | M29: 34.84995991 | N29: 34.58030538 | O29: 29.16052389 | P29: 25.49371772 | Q29: 26.69509765 | R29: 31.20879011 | S29: 34.9740631 | T29: 34.84995991 | U29: 34.58365651 | V29: =SUM(J29:U29)/12 -> 31.79053906
A30: L9 | B30: Заявленная мощность потребителей | D30: 9 | E30: Заявленная мощность | F30: МВт | G30: =SUM(G31:G32) -> 40.49 | H30: 31.4986 | I30: 35.68 | J30: 27.2614 | K30: 34.1522 | L30: 35.7398 | M30: 35.6152 | N30: 35.3377 | O30: 29.7631 | P30: 26.0718 | Q30: 27.2782 | R30: 31.8754 | S30: 35.7398 | T30: 35.6152 | U30: 35.3377 | V30: 32.48229167
A31: L9.1 | B31: собственное потребление | D31: 9.1 | E31: собственное потребление | F31: МВт | V31: =SUM(J31:U31)/12 -> 0
A32: L9.2 | B32: сторонних потребителей (субабонентов) | D32: 9.2 | E32: сторонних потребителей (субабонентов) | F32: МВт | G32: =Субабоненты!H13 -> 40.49 | H32: =Субабоненты!I13 -> 31.4986 | I32: =Субабоненты!J13 -> 35.68 | J32: =Субабоненты!K13 -> 27.2614 | K32: =Субабоненты!L13 -> 34.1522 | L32: =Субабоненты!M13 -> 35.7398 | M32: =Субабоненты!N13 -> 35.6152 | N32: =Субабоненты!O13 -> 35.3377 | O32: =Субабоненты!P13 -> 29.7631 | P32: =Субабоненты!Q13 -> 26.0718 | Q32: =Субабоненты!R13 -> 27.2782 | R32: =Субабоненты!S13 -> 31.8754 | S32: =Субабоненты!T13 -> 35.7398 | T32: =Субабоненты!U13 -> 35.6152 | U32: =Субабоненты!V13 -> 35.3377 | V32: =Субабоненты!W13 -> 32.48229167
A33: L10 | B33: Присоединенная мощность потребителей | D33: 10 | E33: Присоединенная мощность | F33: МВА | G33: =SUM(G34:G35) -> 188.5 | H33: 188.5 | I33: 188.5 | J33: 188.5 | K33: 188.5 | L33: 188.5 | M33: 188.5 | N33: 188.5 | O33: 188.5 | P33: 188.5 | Q33: 188.5 | R33: 188.5 | S33: 188.5 | T33: 188.5 | U33: 188.5 | V33: 188.5
A34: L10.1 | B34: собственное потребление | D34: 10.1 | E34: собственное потребление | F34: МВА | V34: =MAX(J34:U34) -> 0
A35: L10.2 | B35: сторонних потребителей (субабонентов) | D35: 10.2 | E35: сторонних потребителей (субабонентов) | F35: МВА | G35: =Субабоненты!H14 -> 188.5 | H35: =Субабоненты!I14 -> 188.5 | I35: =Субабоненты!J14 -> 188.5 | J35: =Субабоненты!K14 -> 188.5 | K35: =Субабоненты!L14 -> 188.5 | L35: =Субабоненты!M14 -> 188.5 | M35: =Субабоненты!N14 -> 188.5 | N35: =Субабоненты!O14 -> 188.5 | O35: =Субабоненты!P14 -> 188.5 | P35: =Субабоненты!Q14 -> 188.5 | Q35: =Субабоненты!R14 -> 188.5 | R35: =Субабоненты!S14 -> 188.5 | S35: =Субабоненты!T14 -> 188.5 | T35: =Субабоненты!U14 -> 188.5 | U35: =Субабоненты!V14 -> 188.5 | V35: =Субабоненты!W14 -> 188.5
D39: Руководитель организации
D41: Руководитель органа исполнительной власти субъекта Российской Федерации в области государственного регулирования тарифов

Sheet Форма 3.1 (кварталы)
B1: 0 | C1: 0 | D1: 0 | E1: =god -> 2015 | G1: Год | H1: Год | I1: Год | J1: Январь
G2: =$E$1-2 -> 2013 | H2: =$E$1-2 -> 2013 | I2: =$E$1-1 -> 2014 | J2: =$E$1 -> 2015
G3: План | H3: Факт | I3: План | J3: План
D8: ="Предложения " & org & " по технологическому расходу электроэнергии (мощности) - потерям в электрических сетях на "& god &" год в регионе: "&region_name & " (поквартально)" -> Предложения ООО "Электросетевая компания" по технологическому расходу электроэнергии (мощности) - потерям в электрических сетях на 2015 год в регионе: Челябинская область (поквартально)
D10: № п/п | E10: Наименование | F10: Ед. изм. | G10: ="I квартал " & god -> I квартал 2015 | H10: ="II квартал " & god -> II квартал 2015 | I10: ="III квартал " & god -> III квартал 2015 | J10: ="IV квартал " & god -> IV квартал 2015
D11: 1 | E11: 2 | F11: 3 | G11: 4 | H11: 5 | I11: 6 | J11: 7
E12: Электроэнергия
A13: L1 | B13: Отпуск в сеть-энергия | D13: 1 | E13: Поступление в сеть | F13: млн.кВтч | G13: =SUM('Форма 3.1'!J13:L13) -> 56.01 | H13: =SUM('Форма 3.1'!M13:O13) -> 58.85 | I13: =SUM('Форма 3.1'!P13:R13) -> 50.25 | J13: =SUM('Форма 3.1'!S13:U13) -> 62.99
A14: L2 | B14: Потери в электрической сети -энергия | D14: 2 | E14: Потери в электрической сети, в т.ч. относимые на: | F14: млн.кВтч | G14: =SUM('Форма 3.1'!J14:L14) -> 1.19 | H14: =SUM('Форма 3.1'!M14:O14) -> 1.242 | I14: =SUM('Форма 3.1'!P14:R14) -> 1.078 | J14: =SUM('Форма 3.1'!S14:U14) -> 1.349
A15: L2.1 | B15: собственное потребление | D15: 2.1 | E15: собственное потребление | F15: млн.кВтч | G15: =SUM('Форма 3.1'!J15:L15) -> 0 | H15: =SUM('Форма 3.1'!M15:O15) -> 0 | I15: =SUM('Форма 3.1'!P15:R15) -> 0 | J15: =SUM('Форма 3.1'!S15:U15) -> 0
A16: L2.2 | B16: передачу сторонним потребителям (субабонентам) | D16: 2.2 | E16: передачу сторонним потребителям (субабонентам) | F16: млн.кВтч | G16: =SUM('Форма 3.1'!J16:L16) -> 1.19 | H16: =SUM('Форма 3.1'!M16:O16) -> 1.242 | I16: =SUM('Форма 3.1'!P16:R16) -> 1.078 | J16: =SUM('Форма 3.1'!S16:U16) -> 1.349
A17: L3 | B17: Относительные потери-энергия | D17: 3 | E17: Относительные потери | F17: % | G17: =IF(G13=0,0,G14/G13*100) -> 2.124620603 | H17: =IF(H13=0,0,H14/H13*100) -> 2.110450297 | I17: =IF(I13=0,0,I14/I13*100) -> 2.145273632 | J17: =IF(J13=0,0,J14/J13*100) -> 2.141609779
A18: L4 | B18: Полезный отпуск-энергия | D18: 4 | E18: Отпуск из сети (полезный отпуск ), в т.ч. для | F18: млн.кВтч | G18: =SUM('Форма 3.1'!J18:L18) -> 54.82 | H18: =SUM('Форма 3.1'!M18:O18) -> 57.608 | I18: =SUM('Форма 3.1'!P18:R18) -> 49.172 | J18: =SUM('Форма 3.1'!S18:U18) -> 61.641
A19: L4.1 | B19: собственного потребления | D19: 4.1 | E19: собственного потребления | F19: млн.кВтч | G19: =SUM('Форма 3.1'!J19:L19) -> 0 | H19: =SUM('Форма 3.1'!M19:O19) -> 0 | I19: =SUM('Форма 3.1'!P19:R19) -> 0 | J19: =SUM('Форма 3.1'!S19:U19) -> 0
A20: L4.2 | B20: передачи сторонним потребителям (субабонентам) | D20: 4.2 | E20: передачи сторонним потребителям (субабонентам) | F20: млн.кВтч | G20: =SUM('Форма 3.1'!J20:L20) -> 54.82 | H20: =SUM('Форма 3.1'!M20:O20) -> 57.608 | I20: =SUM('Форма 3.1'!P20:R20) -> 49.172 | J20: =SUM('Форма 3.1'!S20:U20) -> 61.605
E21: Мощность
A22: L5 | B22: Отпуск в сеть-энергия | D22: 5 | E22: Поступление в сеть | F22: МВт | G22: =SUM('Форма 3.1'!J22:L22)/3 -> 32.38447789 | H22: =SUM('Форма 3.1'!M22:O22)/3 -> 33.57198794 | I22: =SUM('Форма 3.1'!P22:R22)/3 -> 28.40845579 | J22: =SUM('Форма 3.1'!S22:U22)/3 -> 35.56423434
A23: L6 | B23: Потери в электрической сети -энергия | D23: 6 | E23: Потери в электрической сети, в т.ч. относимые на: | F23: МВт | G23: =SUM('Форма 3.1'!J23:L23)/3 -> 0.6876797033 | H23: =SUM('Форма 3.1'!M23:O23)/3 -> 0.708391547 | I23: =SUM('Форма 3.1'!P23:R23)/3 -> 0.6092539637 | J23: =SUM('Форма 3.1'!S23:U23)/3 -> 0.7616745044
A24: L6.1 | B24: собственное потребление | D24: 6.1 | E24: собственное потребление | F24: МВт | G24: =SUM('Форма 3.1'!J24:L24)/3 -> 0 | H24: =SUM('Форма 3.1'!M24:O24)/3 -> 0 | I24: =SUM('Форма 3.1'!P24:R24)/3 -> 0 | J24: =SUM('Форма 3.1'!S24:U24)/3 -> 0
A25: L6.2 | B25: передачу сторонним потребителям (субабонентам) | D25: 6.2 | E25: передачу сторонним потребителям (субабонентам) | F25: МВт | G25: =SUM('Форма 3.1'!J25:L25)/3 -> 0.6876797033 | H25: =SUM('Форма 3.1'!M25:O25)/3 -> 0.708391547 | I25: =SUM('Форма 3.1'!P25:R25)/3 -> 0.6092539637 | J25: =SUM('Форма 3.1'!S25:U25)/3 -> 0.7616745044
A26: L7 | B26: Относительные потери-энергия | D26: 7 | E26: Относительные потери | F26: % | G26: =IF(G22=0,0,G23/G22*100) -> 2.123485534 | H26: =IF(H22=0,0,H23/H22*100) -> 2.110067322 | I26: =IF(I22=0,0,I23/I22*100) -> 2.144621898 | J26: =IF(J22=0,0,J23/J22*100) -> 2.141686777
A27: L8 | B27: Полезный отпуск-энергия | D27: 8 | E27: Отпуск из сети (полезный отпуск), в т.ч. для | F27: МВт | G27: =SUM('Форма 3.1'!J27:L27)/3 -> 31.69679818 | H27: =SUM('Форма 3.1'!M27:O27)/3 -> 32.86359639 | I27: =SUM('Форма 3.1'!P27:R27)/3 -> 27.79920183 | J27: =SUM('Форма 3.1'!S27:U27)/3 -> 34.80255984
A28: L8.1 | B28: собственного потребления | D28: 8.1 | E28: собственного потребления | F28: МВт | G28: =SUM('Форма 3.1'!J28:L28)/3 -> 0 | H28: =SUM('Форма 3.1'!M28:O28)/3 -> 0 | I28: =SUM('Форма 3.1'!P28:R28)/3 -> 0 | J28: =SUM('Форма 3.1'!S28:U28)/3 -> 0
A29: L8.2 | B29: передачи сторонним потребителям (субабонентам) | D29: 8.2 | E29: передачи сторонним потребителям (субабонентам) | F29: МВт | G29: =SUM('Форма 3.1'!J29:L29)/3 -> 31.69679818 | H29: =SUM('Форма 3.1'!M29:O29)/3 -> 32.86359639 | I29: =SUM('Форма 3.1'!P29:R29)/3 -> 27.79920183 | J29: =SUM('Форма 3.1'!S29:U29)/3 -> 34.80255984
A30: L9 | B30: Заявленная мощность потребителей | D30: 9 | E30: Заявленная мощность | F30: МВт | G30: =SUM('Форма 3.1'!J30:L30)/3 -> 32.38446667 | H30: =SUM('Форма 3.1'!M30:O30)/3 -> 33.572 | I30: =SUM('Форма 3.1'!P30:R30)/3 -> 28.40846667 | J30: =SUM('Форма 3.1'!S30:U30)/3 -> 35.56423333
A31: L9.1 | B31: собственное потребление | D31: 9.1 | E31: собственное потребление | F31: МВт | G31: =SUM('Форма 3.1'!J31:L31)/3 -> 0 | H31: =SUM('Форма 3.1'!M31:O31)/3 -> 0 | I31: =SUM('Форма 3.1'!P31:R31)/3 -> 0 | J31: =SUM('Форма 3.1'!S31:U31)/3 -> 0
A32: L9.2 | B32: сторонних потребителей (субабонентов) | D32: 9.2 | E32: сторонних потребителей (субабонентов) | F32: МВт | G32: =SUM('Форма 3.1'!J32:L32)/3 -> 32.38446667 | H32: =SUM('Форма 3.1'!M32:O32)/3 -> 33.572 | I32: =SUM('Форма 3.1'!P32:R32)/3 -> 28.40846667 | J32: =SUM('Форма 3.1'!S32:U32)/3 -> 35.56423333
A33: L10 | B33: Присоединенная мощность потребителей | D33: 10 | E33: Присоединенная мощность | F33: МВА | G33: =SUM(G34:G35) -> 188.5 | H33: =SUM(H34:H35) -> 188.5 | I33: =SUM(I34:I35) -> 188.5 | J33: =SUM(J34:J35) -> 188.5
A34: L10.1 | B34: собственное потребление | D34: 10.1 | E34: собственное потребление | F34: МВА | G34: =MAX('Форма 3.1'!J34:L34) -> 0 | H34: =MAX('Форма 3.1'!M34:O34) -> 0 | I34: =MAX('Форма 3.1'!P34:R34) -> 0 | J34: =MAX('Форма 3.1'!S34:U34) -> 0
A35: L10.2 | B35: сторонних потребителей (субабонентов) | D35: 10.2 | E35: сторонних потребителей (субабонентов) | F35: МВА | G35: =MAX('Форма 3.1'!J35:L35) -> 188.5 | H35: =MAX('Форма 3.1'!M35:O35) -> 188.5 | I35: =MAX('Форма 3.1'!P35:R35) -> 188.5 | J35: =MAX('Форма 3.1'!S35:U35) -> 188.5
D39: Руководитель организации
D41: Руководитель органа исполнительной власти субъекта Российской Федерации в области государственного регулирования тарифов

Sheet Форма 16
C1: 0 | E1: 0 | F1: 0 | G1: =god -> 2015 | I1: Год | J1: Год | K1: Год | M1: Январь
I2: =G1-2 -> 2013 | J2: =G1-2 -> 2013 | K2: =G1-1 -> 2014 | M2: =$G$1 -> 2015
I3: План | J3: Факт | K3: План | M3: План
D9: ="Информация по нормативам потерь электрической энергии при передаче по электрическим сетям, утвержденным Минэнерго России по " &org& " на "&god&" год в регионе: "&region_name -> Информация по нормативам потерь электрической энергии при передаче по электрическим сетям, утвержденным Минэнерго России по ООО "Электросетевая компания" на 2015 год в регионе: Челябинская область
D10: ="Если в " & god-1 & " году организация не получала норматив, то укажите год, когда этот норматив был получен в последний раз." -> Если в 2014 году организация не получала норматив, то укажите год, когда этот норматив был получен в последний раз.
D11: 2013 | I11: =IF(god="","(Не определено)",god) -> 2015
D12: Отпуск э/энергии в сеть (млн. кВтч) | E12: Норматив потерь электроэнергии | G12: Приказ Минэнерго РФ | I12: Отпуск э/энергии в сеть (млн. кВтч) | J12: Норматив потерь электроэнергии | L12: Приказ Минэнерго РФ
E13: Абсол. величина (млн. кВтч) | F13: % | G13: Дата | H13: Номер | J13: Абсол. величина (млн. кВтч) | K13: % | L13: Дата | M13: Номер
D14: 1 | E14: 2 | F14: 3 | G14: 4 | H14: 5 | I14: 6 | J14: 7 | K14: 8 | L14: 9 | M14: 10
D15: 237.07 | E15: 5.0496 | F15: 2.13 | G15: 26.09.2013 | H15: 655

Sheet Субабоненты
C1: 0 | E1: 0 | F1: 0 | G1: =god -> 2015 | H1: Год | I1: Год | J1: Год | K1: Январь | L1: Февраль | M1: Март | N1: Апрель | O1: Май | P1: Июнь | Q1: Июль | R1: Август | S1: Сентябрь | T1: Октябрь | U1: Ноябрь | V1: Декабрь | W1: Год
H2: =G1-2 -> 2013 | I2: =G1-2 -> 2013 | J2: =G1-1 -> 2014 | K2: =$G$1 -> 2015 | L2: 2015 | M2: 2015 | N2: 2015 | O2: 2015 | P2: 2015 | Q2: 2015 | R2: 2015 | S2: 2015 | T2: 2015 | U2: 2015 | V2: 2015 | W2: 2015
H3: План | I3: Факт | J3: План | K3: План | L3: План | M3: План | N3: План | O3: План | P3: План | Q3: План | R3: План | S3: План | T3: План | U3: План | V3: План | W3: План
W6: Форма 3.1
D9: ="Предложения " &org& " по технологическому расходу электроэнергии (мощности) - потерям в электрических сетях на "&god&" год в регионе: "&region_name -> Предложения ООО "Электросетевая компания" по технологическому расходу электроэнергии (мощности) - потерям в электрических сетях на 2015 год в регионе: Челябинская область
D11: № п/п | E11: Наименование организации | F11: Показатель | G11: Ед. изм. | H11: =H3&" "&H2&" "&H1 -> План 2013 Год | I11: Факт 2013 Год | J11: План 2014 Год | K11: План 2015 Январь | L11: План 2015 Февраль | M11: План 2015 Март | N11: План 2015 Апрель | O11: План 2015 Май | P11: План 2015 Июнь | Q11: План 2015 Июль | R11: План 2015 Август | S11: План 2015 Сентябрь | T11: План 2015 Октябрь | U11: План 2015 Ноябрь | V11: План 2015 Декабрь | W11: План 2015 Год
D12: 1 | E12: 2 | F12: 3 | G12: 4 | H12: 5 | I12: 6 | J12: 7 | K12: 8 | L12: 9 | M12: 10 | N12: 11 | O12: 12 | P12: 13 | Q12: 14 | R12: 15 | S12: 16 | T12: 17 | U12: 18 | V12: 19 | W12: 20
D13: Всего | F13: Заявленная мощность потребителей | G13: МВт | H13: =SUMIF($F$15:$F$18,"="&$F$13,H15:H18) -> 40.49 | I13: 31.4986 | J13: 35.68 | K13: 27.2614 | L13: 34.1522 | M13: 35.7398 | N13: 35.6152 | O13: 35.3377 | P13: 29.7631 | Q13: 26.0718 | R13: 27.2782 | S13: 31.8754 | T13: 35.7398 | U13: 35.6152 | V13: 35.3377 | W13: 32.48229167
F14: Присоединенная мощность потребителей | G14: МВА | H14: =SUMIF($F$15:$F$18,"="&$F$14,H15:H18) -> 188.5 | I14: 188.5 | J14: 188.5 | K14: 188.5 | L14: 188.5 | M14: 188.5 | N14: 188.5 | O14: 188.5 | P14: 188.5 | Q14: 188.5 | R14: 188.5 | S14: 188.5 | T14: 188.5 | U14: 188.5 | V14: 188.5 | W14: 188.5
D15: 0
C16: О | D16: 1 | E16: ООО "Электросетевая компания" | F16: Заявленная мощность потребителей | G16: МВт | H16: 40.49 | I16: 31.4986 | J16: 35.68 | K16: 27.2614 | L16: 34.1522 | M16: 35.7398 | N16: 35.6152 | O16: 35.3377 | P16: 29.7631 | Q16: 26.0718 | R16: 27.2782 | S16: 31.8754 | T16: 35.7398 | U16: 35.6152 | V16: 35.3377 | W16: =SUM(K16:V16)/12 -> 32.48229167
F17: Присоединенная мощность потребителей | G17: МВА | H17: 188.5 | I17: 188.5 | J17: 188.5 | K17: 188.5 | L17: 188.5 | M17: 188.5 | N17: 188.5 | O17: 188.5 | P17: 188.5 | Q17: 188.5 | R17: 188.5 | S17: 188.5 | T17: 188.5 | U17: 188.5 | V17: 188.5 | W17: =MAX(K17:V17) -> 188.5
E18: Добавить организацию

Sheet Субабоненты (кварталы)
C1: 0 | E1: 0 | F1: 0 | G1: =god -> 2015 | H1: Год | I1: Год | J1: Год | K1: Январь
H2: =G1-2 -> 2013 | I2: =G1-2 -> 2013 | J2: =G1-1 -> 2014 | K2: =$G$1 -> 2015
H3: План | I3: Факт | J3: План | K3: План
D9: ="Предложения " &org& " по технологическому расходу электроэнергии (мощности) - потерям в электрических сетях на "&god&" год в регионе: "&region_name & " (поквартально)" -> Предложения ООО "Электросетевая компания" по технологическому расходу электроэнергии (мощности) - потерям в электрических сетях на 2015 год в регионе: Челябинская область (поквартально)
D11: № п/п | E11: Наименование организации | F11: Показатель | G11: Ед. изм. | H11: ="I квартал " & god -> I квартал 2015 | I11: ="II квартал " & god -> II квартал 2015 | J11: ="III квартал " & god -> III квартал 2015 | K11: ="IV квартал " & god -> IV квартал 2015
D12: 1 | E12: 2 | F12: 3 | G12: 4 | H12: 5 | I12: 6 | J12: 7 | K12: 8
D13: Всего | F13: Заявленная мощность потребителей | G13: МВт | H13: =SUMIF($F$15:$F$18,$F13,H$15:H$18) -> 32.38446667 | I13: 33.572 | J13: 28.40846667 | K13: 35.56423333
F14: Присоединенная мощность потребителей | G14: МВА | H14: 188.5 | I14: 188.5 | J14: 188.5 | K14: 188.5
D15: 0
D16: =Субабоненты!$D$16 -> 1 | E16: =Субабоненты!$E$16 -> ООО "Электросетевая компания" | F16: Заявленная мощность потребителей | G16: МВт | H16: =(Субабоненты!K16+Субабоненты!L16+Субабоненты!M16)/3 -> 32.38446667 | I16: =(Субабоненты!N16+Субабоненты!O16+Субабоненты!P16)/3 -> 33.572 | J16: =(Субабоненты!Q16+Субабоненты!R16+Субабоненты!S16)/3 -> 28.40846667 | K16: =(Субабоненты!T16+Субабоненты!U16+Субабоненты!V16)/3 -> 35.56423333
F17: Присоединенная мощность потребителей | G17: МВА | H17: =MAX(Субабоненты!K17,Субабоненты!L17,Субабоненты!M17) -> 188.5 | I17: =MAX(Субабоненты!N17,Субабоненты!O17,Субабоненты!P17) -> 188.5 | J17: =MAX(Субабоненты!Q17,Субабоненты!R17,Субабоненты!S17) -> 188.5 | K17: =MAX(Субабоненты!T17,Субабоненты!U17,Субабоненты!V17) -> 188.5

Sheet TEHSHEET (hidden)
A1: REGION | B1: year_list
A2: Алтайский край | B2: 2008
A3: Амурская область | B3: 2009
A4: Архангельская область | B4: 2010
A5: Астраханская область | B5: 2011
A6: Белгородская область | B6: 2012
A7: Брянская область | B7: 2013
A8: Владимирская область | B8: 2014
A9: Волгоградская область
A10: Вологодская область
A11: Воронежская область
A12: г.Байконур
A13: г. Москва
A14: г.Санкт-Петербург
A15: Еврейская автономная область
A16: Забайкальский край
A17: Ивановская область
A18: Иркутская область
A19: Кабардино-Балкарская республика
A20: Калининградская область
A21: Калужская область
A22: Камчатский край
A23: Карачаево-Черкесская республика
A24: Кемеровская область
A25: Кировская область
A26: Костромская область
A27: Краснодарский край
A28: Красноярский край
A29: Курганская область
A30: Курская область
A31: Ленинградская область
A32: Липецкая область
A33: Магаданская область
A34: Московская область
A35: Мурманская область
A36: Ненецкий автономный округ
A37: Нижегородская область
A38: Новгородская область
A39: Новосибирская область
A40: Омская область
A41: Оренбургская область
A42: Орловская область
A43: Пензенская область
A44: Пермский край
A45: Приморский край
A46: Псковская область
A47: Республика Адыгея
A48: Республика Алтай
A49: Республика Башкортостан
A50: Республика Бурятия
A51: Республика Дагестан
A52: Республика Ингушетия
A53: Республика Калмыкия
A54: Республика Карелия
A55: Республика Коми
A56: Республика Марий Эл
A57: Республика Мордовия
A58: Республика Саха (Якутия)
A59: Республика Северная Осетия-Алания
A60: Республика Татарстан
A61: Республика Тыва
A62: Республика Хакасия
A63: Ростовская область
A64: Рязанская область
A65: Самарская область
A66: Саратовская область
A67: Сахалинская область
A68: Свердловская область
A69: Смоленская область
A70: Ставропольский край
A71: Тамбовская область
A72: Тверская область
A73: Томская область
A74: Тульская область
A75: Тюменская область
A76: Удмуртская республика
A77: Ульяновская область
A78: Хабаровский край
A79: Ханты-Мансийский автономный округ
A80: Челябинская область
A81: Чеченская республика
A82: Чувашская республика
A83: Чукотский автономный округ
A84: Ямало-Ненецкий автономный округ
A85: Ярославская область

Sheet modProv (hidden)

Sheet et_union_hor (hidden)
A1: et_List04
F3: Заявленная мощность потребителей | G3: МВт | W3: =SUM(K3:V3)/12 -> 0
F4: Присоединенная мощность потребителей | G4: МВА | W4: =MAX(K4:V4) -> 0
A6: et_List05
F8: Заявленная мощность потребителей | G8: МВт | H8: =(Субабоненты!K8+Субабоненты!L8+Субабоненты!M8)/3 -> 0 | I8: =(Субабоненты!N8+Субабоненты!O8+Субабоненты!P8)/3 -> 0 | J8: =(Субабоненты!Q8+Субабоненты!R8+Субабоненты!S8)/3 -> 0 | K8: =(Субабоненты!T8+Субабоненты!U8+Субабоненты!V8)/3 -> 0
F9: Присоединенная мощность потребителей | G9: МВА | H9: =MAX(Субабоненты!K9,Субабоненты!L9,Субабоненты!M9) -> 0 | I9: =MAX(Субабоненты!N9,Субабоненты!O9,Субабоненты!P9) -> 0 | J9: =MAX(Субабоненты!Q9,Субабоненты!R9,Субабоненты!S9) -> 0 | K9: =MAX(Субабоненты!T9,Субабоненты!U9,Субабоненты!V9) -> 0

Sheet modReestr (hidden)

Sheet modfrmReestr (hidden)

Sheet AllSheetsInThisWorkbook (hidden)
A1: Расчетные листы | B1: Скрытые листы
A2: Инструкция | B2: TEHSHEET
A3: Лог обновления | B3: modProv
A4: Титульный | B4: et_union_hor
A5: Форма 3.1 | B5: modReestr
A6: Форма 3.1 (кварталы) | B6: modfrmReestr
A7: Форма 16 | B7: AllSheetsInThisWorkbook
A8: Субабоненты | B8: REESTR_ORG
A9: Субабоненты (кварталы) | B9: modClassifierValidate
A10: Комментарии | B10: modHyp
A11: Проверка | B11: modList00
B12: modList03
B13: modList04
B14: modInstruction
B15: modUpdTemplMain
B16: modfrmCheckUpdates

Sheet REESTR_ORG (hidden)
A1: YEAR | B1: REGION_NAME | C1: ORG_NAME | D1: INN | E1: KPP | F1: DATE_BEGIN | G1: DATE_END
A2: 1 | B2: Челябинская область | C2: ЗАО "Высокотемпературные строительные материалы" | D2: 7451043289 | E2: 744701001
A3: 2 | B3: Челябинская область | C3: ЗАО "ЖБИ-2" | D3: 7449010303 | E3: 744901001
A4: 3 | B4: Челябинская область | C4: ЗАО "Катавский цемент" | D4: 7410005573 | E4: 741001001
A5: 4 | B5: Челябинская область | C5: ЗАО "Литейно-механический завод "Стройэкс" | D5: 7450005643 | E5: 745001001
A6: 5 | B6: Челябинская область | C6: ЗАО "МиассЭнерго" | D6: 7415055673 | E6: 741501001
A7: 6 | B7: Челябинская область | C7: ЗАО "Саткинский чугуноплавильный завод" | D7: 7417011047 | E7: 741450001
A8: 7 | B8: Челябинская область | C8: ЗАО "Челябинский трубный опытно-экспериментальный завод" | D8: 7449007156 | E8: 744901001
A9: 8 | B9: Челябинская область | C9: ЗАО "Электросеть" | D9: 7714734225 | E9: 745045002
A10: 9 | B10: Челябинская область | C10: ЗАО "Энергосетевая Компания ЧТПЗ" Разделена от (ОАО "Челябинский трубопрокатный завод") | D10: 7449045730 | E10: 744901001
A11: 10 | B11: Челябинская область | C11: ЗАО КХП "Злак" | D11: 7440000090 | E11: 744001001
A12: 11 | B12: Челябинская область | C12: ЗАО ЦПТК "Челябметаллургстрой" | D12: 7450001335 | E12: 745001001
A13: 12 | B13: Челябинская область | C13: Завод ЖБИ, ООО | D13: 7415043438 | E13: 741501001
A14: 13 | B14: Челябинская область | C14: Куйбышевская дирекция по энергообеспечению - структурное подразделение Трансэнерго - филиала ОАО "РЖД" | D14: 7708503727 | E14: 631145010
A15: 14 | B15: Челябинская область | C15: ММПКХ | D15: 7422000570 | E15: 742201001
A16: 15 | B16: Челябинская область | C16: МП "Горэлектросеть" г.Магнитогорска | D16: 7414000093 | E16: 744401001
A17: 16 | B17: Челябинская область | C17: МУП "Многоотраслевое производственное объединение энергосетей" | D17: 7405000450 | E17: 740501001
A18: 17 | B18: Челябинская область | C18: МУП "Производственное объединение водоснабжения и водоотведения" | D18: 7421000440 | E18: 742150001
A19: 18 | B19: Челябинская область | C19: МУП "Санаторий "Дальняя Дача" | D19: 7422012007 | E19: 741301001
A20: 19 | B20: Челябинская область | C20: МУП "ЧелябГЭТ" Переименована от (МУП "Челябгортранс") | D20: 7453222413 | E20: 745301001
A21: 20 | B21: Челябинская область | C21: МУП "Электротепловые сети" | D21: 7418012452 | E21: 741801001
A22: 21 | B22: Челябинская область | C22: МУП Копейские электрические сети | D22: 7411006837 | E22: 743001001
A23: 22 | B23: Челябинская область | C23: Муниципальное предприятие муниципального образования ЗАТО г.Снежинск "Энергетик | D23: 7423000075 | E23: 742301001
A24: 23 | B24: Челябинская область | C24: ОАО "Автомобильный завод "Урал" | D24: 7415029289 | E24: 997850001
A25: 24 | B25: Челябинская область | C25: ОАО "Ашинский химический завод" | D25: 7401000970 | E25: 740101001
A26: 25 | B26: Челябинская область | C26: ОАО "Вишневогорский горно-обогатительный комбинат" | D26: 7409000147 | E26: 740901001
A27: 26 | B27: Челябинская область | C27: ОАО "Комбинат хлебопродуктов им. Григоровича" | D27: 7453006500 | E27: 745301001
A28: 27 | B28: Челябинская область | C28: ОАО "Кыштымский абразивный завод" | D28: 7413007498 | E28: 741301001
A29: 28 | B29: Челябинская область | C29: ОАО "Магнитогорский металлургический комбинат" | D29: 7414003633 | E29: 997550001
A30: 29 | B30: Челябинская область | C30: ОАО "Магнитогорский метизно-калибровочный завод "ММК-Метиз" | D30: 7414001428 | E30: 741450001
A31: 30 | B31: Челябинская область | C31: ОАО "Миассэлектроаппарат" | D31: 7415028790 | E31: 741501001
A32: 31 | B32: Челябинская область | C32: ОАО "Победа" | D32: 7453004528 | E32: 745301001
A33: 32 | B33: Челябинская область | C33: ОАО "РосНИТИ" | D33: 7449013537 | E33: 744901001
A34: 33 | B34: Челябинская область | C34: ОАО "Трансэнерго" | D34: 7423023178 | E34: 745450001
A35: 34 | B35: Челябинская область | C35: ОАО "Тургоякское рудоуправление" | D35: 7415004421 | E35: 741501001
A36: 35 | B36: Челябинская область | C36: ОАО "Уралавтоприцеп" | D36: 7450003445 | E36: 745450001
A37: 36 | B37: Челябинская область | C37: ОАО "ЧЗПСН-Профнастил" | D37: 7447014976 | E37: 744701001
A38: 37 | B38: Челябинская область | C38: ОАО "Челябинская электросетевая компания" | D38: 7448057228 | E38: 744801001
A39: 38 | B39: Челябинская область | C39: ОАО "Челябинский автомеханический завод" | D39: 7452001010 | E39: 745201001
A40: 39 | B40: Челябинская область | C40: ОАО "Челябинский часовой завод "Молния" | D40: 7453006148 | E40: 745301001
A41: 40 | B41: Челябинская область | C41: ОАО "Челябинское авиапредприятие" | D41: 7450003519 | E41: 745001001
A42: 41 | B42: Челябинская область | C42: ОАО "Челябметрострой" | D42: 7453063763 | E42: 745301001
A43: 42 | B43: Челябинская область | C43: ОАО "Электромашина" | D43: 7449016055 | E43: 744901001
A44: 43 | B44: Челябинская область | C44: ОАО "Энергопром-Челябинский Электродный завод" | D44: 7450005001 | E44: 745001001
A45: 44 | B45: Челябинская область | C45: ОАО "Южноуральский завод "Кристалл" | D45: 7424004900 | E45: 742401001
A46: 45 | B46: Челябинская область | C46: ОАО Завод Пластмасс | D46: 7411009901 | E46: 743001001
A47: 46 | B47: Челябинская область | C47: ОАО ФНПЦ "Станкомаш" | D47: 7449013664 | E47: 742150001
A48: 47 | B48: Челябинская область | C48: ООО "АЭС Инвест" (объединена с Областной электросетевой компанией) | D48: 7453169760 | E48: 745301001
A49: 48 | B49: Челябинская область | C49: ООО "Альтаир" | D49: 7401011330 | E49: 740101001
A50: 49 | B50: Челябинская область | C50: ООО "Вектор ТК" | D50: 7447202120 | E50: 744701001
A51: 50 | B51: Челябинская область | C51: ООО "Горводоканал" | D51: 7417021422 | E51: 741701001
A52: 51 | B52: Челябинская область | C52: ООО "Единая Коммунальная Компания" | D52: 7451219341 | E52: 744701001
A53: 52 | B53: Челябинская область | C53: ООО "Жилстрой №9" | D53: 7453049127 | E53: 745101001
A54: 53 | B54: Челябинская область | C54: ООО "Завод крупнопанельного домостроения" | D54: 7415039590 | E54: 741450001
A55: 54 | B55: Челябинская область | C55: ООО "КЛЗ" | D55: 7401016314 | E55: 740101001
A56: 55 | B56: Челябинская область | C56: ООО "Каслинская ЭнергоСбытовая Компания" | D56: 7409007833 | E56: 740901001
A57: 56 | B57: Челябинская область | C57: ООО "МИЗ-Энерго" | D57: 7453175629 | E57: 745301001
A58: 57 | B58: Челябинская область | C58: ООО "Медведевский мраморный карьер" | D58: 7434004219 | E58: 743401001
A59: 58 | B59: Челябинская область | C59: ООО "Металлстрой" | D59: 7451080650 | E59: 745101001
A60: 59 | B60: Челябинская область | C60: ООО "МиассЭнергоСтрой" | D60: 7415041790 | E60: 741501001
A61: 60 | B61: Челябинская область | C61: ООО "Миассэнергосервис" | D61: 7415062920 | E61: 741501001
A62: 61 | B62: Челябинская область | C62: ООО "Новосинеглазовский завод строительных материалов" | D62: 7453091834 | E62: 745101001
A63: 62 | B63: Челябинская область | C63: ООО "Объединенная электросетевая компания - Челябинск" | D63: 7453234031 | E63: 745301001
A64: 63 | B64: Челябинская область | C64: ООО "ПСК" | D64: 7404035266 | E64: 741101001
A65: 64 | B65: Челябинская область | C65: ООО "Регионснабсбыт" | D65: 7423009173 | E65: 745301001
A66: 65 | B66: Челябинская область | C66: ООО "Рубин-Энерго" | D66: 7434004113 | E66: 743401001
A67: 66 | B67: Челябинская область | C67: ООО "СИТИ-ПАРК Энерго" | D67: 7452091609 | E67: 745201001
A68: 67 | B68: Челябинская область | C68: ООО "СПЕКТР-ЭЛЕКТРО" | D68: 7447150440 | E68: 744901001
A69: 68 | B69: Челябинская область | C69: ООО "Спецлитье" Переименована от (ООО"Златэнерготелеком") | D69: 7404055150 | E69: 740401001
A70: 69 | B70: Челябинская область | C70: ООО "Спецэнергоресурс" | D70: 7453228006 | E70: 745301001
A71: 70 | B71: Челябинская область | C71: ООО "СтройЭнергоМонтаж" Разделена от (ООО "Коммет") | D71: 7450076806 | E71: 745001001
A72: 71 | B72: Челябинская область | C72: ООО "ТДК" | D72: 7449109969 | E72: 744901001
A73: 72 | B73: Челябинская область | C73: ООО "ТРЕОЛ" | D73: 7453091721 | E73: 745301001
A74: 73 | B74: Челябинская область | C74: ООО "Тайгинский карьер" | D74: 7447171376 | E74: 741301001
A75: 74 | B75: Челябинская область | C75: ООО "Тепловые электрические сети и системы" | D75: 7450053485 | E75: 745001001
A76: 75 | B76: Челябинская область | C76: ООО "ТранснефтьЭлектросетьСервис" | D76: 6311049306 | E76: 631101001
A77: 76 | B77: Челябинская область | C77: ООО "Трансэнерго" Разделена от (ООО СК "Златмаш") | D77: 7404057164 | E77: 740401001
A78: 77 | B78: Челябинская область | C78: ООО "УЗМИ" | D78: 7402004819 | E78: 740201001
A79: 78 | B79: Челябинская область | C79: ООО "Универмаг "Детский мир" | D79: 7453000185 | E79: 745301001
A80: 79 | B80: Челябинская область | C80: ООО "Управление энергоснабжения и связи" | D80: 7422043968 | E80: 742201001
A81: 80 | B81: Челябинская область | C81: ООО "Урал-Энерго" переадресация (ОАО "Челябинский кузнечно-прессовый завод") | D81: 7449093571 | E81: 744901001
A82: 81 | B82: Челябинская область | C82: ООО "УралПром" | D82: 7453094899 | E82: 744801001
A83: 82 | B83: Челябинская область | C83: ООО "Уралвермикулит" | D83: 7413010437 | E83: 741301001
A84: 83 | B84: Челябинская область | C84: ООО "Усть-Катавские электросети" | D84: 7401013987 | E84: 740101001
A85: 84 | B85: Челябинская область | C85: ООО "Фортуна" | D85: 7444042213 | E85: 744401101
A86: 85 | B86: Челябинская область | C86: ООО "ЧТЗ-УРАЛТРАК" Переименована от (ООО "Энергия ЧТЗ") | D86: 7452027843 | E86: 997850001
A87: 86 | B87: Челябинская область | C87: ООО "Челябинский завод керамических материалов" | D87: 7452028766 | E87: 745201001
A88: 87 | B88: Челябинская область | C88: ООО "Э-Контакт" | D88: 7449113041 | E88: 744901001
A89: 88 | B89: Челябинская область | C89: ООО "Электро ТК" | D89: 7449111830 | E89: 744901001
A90: 89 | B90: Челябинская область | C90: ООО "Электро-транспорт" | D90: 7447167228 | E90: 744901001
A91: 90 | B91: Челябинская область | C91: ООО "Электросетевая компания" | D91: 7417014880 | E91: 741701001
A92: 91 | B92: Челябинская область | C92: ООО "Электросетевая компания" г. Екатеринбург | D92: 6672303536 | E92: 667201001
A93: 92 | B93: Челябинская область | C93: ООО "Энергосетевая компания Амет" | D93: 7401012158 | E93: 740101001
A94: 93 | B94: Челябинская область | C94: ООО "Энергоснабжающая сетевая компания" | D94: 7453161626 | E94: 745301001
A95: 94 | B95: Челябинская область | C95: ООО "Эффект ТК" | D95: 7449096847 | E95: 744901001
A96: 95 | B96: Челябинская область | C96: ООО "ЮжУРАЛЭнергосталь" | D96: 7449041580 | E96: 744901001
A97: 96 | B97: Челябинская область | C97: ООО "Южноуральская сетевая компания" Переименована от (Сетевая компания ООО "Энергия +") | D97: 7424028997 | E97: 742401001
A98: 97 | B98: Челябинская область | C98: ООО Механический завод | D98: 7412008851 | E98: 743001001
A99: 98 | B99: Челябинская область | C99: ООО ПКП "НикМа" | D99: 7447102862 | E99: 744701001
A100: 99 | B100: Челябинская область | C100: ООО ТД "ХИМПРОДУКТ" | D100: 7451076213 | E100: 745301001
A101: 100 | B101: Челябинская область | C101: ООО УК "Микрорайон Радужный" | D101: 7448160183 | E101: 744801001
A102: 101 | B102: Челябинская область | C102: ООО Электросети | D102: 7417009898 | E102: 741701001
A103: 102 | B103: Челябинская область | C103: Открытое акционерное общество "Оборонэнерго" - филиал "Уральский" | D103: 7704726225 | E103: 667243001
A104: 103 | B104: Челябинская область | C104: Открытое акционерное общество Челябинский электрометаллургический комбинат | D104: 7447010227 | E104: 742150001
A105: 104 | B105: Челябинская область | C105: Приуральский филиал ООО "Газпром энерго" | D105: 7736186950 | E105: 027602001
A106: 105 | B106: Челябинская область | C106: ФГУП "Приборостроительный завод" | D106: 7405000428 | E106: 742150001
A107: 106 | B107: Челябинская область | C107: ФГУП "Магнитогорское авиапредприятие" | D107: 7414001957 | E107: 744601001
A108: 107 | B108: Челябинская область | C108: ФГУП "ПО "Маяк" | D108: 7422000795 | E108: 742201001
A109: 108 | B109: Челябинская область | C109: Филиал ОАО "Межрегиональная распределительная сетевая компания Урала" - "Челябэнерго" | D109: 6671163413 | E109: 745102001
A110: 109 | B110: Челябинская область | C110: Челябинское нефтепроводное управление - филиал ОАО "Уралсибнефтепровод" | D110: 0278039018 | E110: 744902001
A111: 110 | B111: Челябинская область | C111: Южно-Уральская дирекция по энергообеспечению – структурное подразделение Трансэнерго – филиала ОАО «РЖД» | D111: 7708503727 | E111: 745145018

Sheet modClassifierValidate (hidden)

Sheet modHyp (hidden)

Sheet modList00 (hidden)

Sheet modList03 (hidden)

Sheet modList04 (hidden)

Sheet modInstruction (hidden)

Sheet modUpdTemplMain (hidden)

Sheet modfrmCheckUpdates (hidden)
